[Event "WSTCC-50 2024"]
[Site "Krakow"]
[Date "2024.07.02"]
[Round "1.3"]
[White "Novikov, Igor"]
[Black "Santanna, Paulo"]
[Result "1-0"]
[ECO "D38"]
[WhiteElo "2509"]
[BlackElo "2020"]
[Annotator "TA"]
[PlyCount "79"]
[EventDate "2024.07.01"]
[EventType "team-tourn"]
[EventCountry "POL"]
[SourceTitle "playchess.com"]
[Source "ChessBase"]
[SourceQuality "1"]
[TimeControl "40/5400+30:1800+30"]

{[%evp 19,79,77,58,64,77,53,90,87,93,87,96,94,92,90,96,96,110,119,112,113,112,121,118,116,141,138,139,133,191,189,185,133,189,190,319,259,406,329,343,327,272,0,120,0,310,295,566,566,856,540,524,632,786,745,1040,835,1158,1000,1021,935,618,607]} 1. d4 {[%emt 0:00:04]} Nf6 {[%emt 0:00:10]} 2. c4 {[%emt 0:00:08]} e6 {[%emt 0:00:09]} 3. Nf3 {[%emt 0:00:07]} d5 {[%emt 0:00:11]} 4. Nc3 {[%emt 0:00:18]} Bb4 {[%emt 0:00:18]} 5. Bg5 {[%emt 0:00:47]} h6 {[%emt 0:00:24]} 6. Bxf6 {[%emt 0:00:39]} Qxf6 {[%emt 0:00:15]} 7. e3 {[%emt 0:00:18]} O-O {[%emt 0:01:11]} 8. Rc1 {[%emt 0:01:30]} c5 {[%emt 0:06:52]} 9. cxd5 {[%emt 0:02:48]} exd5 {[%emt 0:03:54]} 10. dxc5 {[%emt 0:00:43]} Nc6 {[%emt 0:02:07]} 11. Bb5 {[%emt 0:06:54]} Bg4 {[%emt 0:04:19]} 12. Bxc6 {[%emt 0:03:49]} Qxc6 {[%emt 0:05:42] [#]} 13. Ne5 $1 {[%emt 0:13:32] White is better.} Bxd1 {[%emt 0:00:24]} (13... Bxc3+ 14. Rxc3) 14. Nxc6 {[%emt 0:00:04]} bxc6 {[%emt 0:02:07]} 15. Kxd1 {[%emt 0:00:11]} Bxc3 {[%emt 0:06:42]} 16. Rxc3 $16 {[%emt 0:00:16][%mdl 4096] Endgame. KRR-KRR} Rfb8 {[%emt 0:01:44]} 17. Kc2 {[%emt 0:16:45]} a5 {[%emt 0:05:08][%cal Ba7a5,Ba5a4][%mdl 32]} 18. Rd1 {[%emt 0:03:54]} a4 {[%emt 0:06:08]} 19. Rd4 {[%emt 0:04:50]} Rb5 {[%emt 0:06:28]} 20. e4 {[%emt 0:09:53]} dxe4 {[%emt 0:02:05]} 21. Rxe4 {[%emt 0:00:08]} Rab8 {[%emt 0:03:07]} 22. b3 {[%emt 0:00:22]} ({Of course not} 22. Rxa4 $6 Rxb2+ 23. Kc1 Rxf2 $11) 22... axb3+ {[%emt 0:00:31]} 23. axb3 {[%emt 0:00:06]} Ra8 {[%emt 0:05:29]} (23... R5b7 $16 24. Ra4 h5) 24. Ra4 $1 $18 {[%emt 0:04:09]} Re8 {[%emt 0:06:21]} 25. Kd3 {[%emt 0:01:16] Inhibits Re2.} (25. Ra6 $18 Re2+ 26. Kd3 Rxf2 27. Rxc6) 25... Rd8+ {[%emt 0:00:41]} (25... Rb7 $16 26. h3 Rbe7) 26. Kc4 $1 {[%emt 0:05:10] aiming for Ra6.} Rd5 {[%emt 0:04:33]} (26... Re8 $142 27. Re3 Reb8) 27. b4 {[%emt 0:00:15]} Rd2 {[%emt 0:01:23]} (27... Rb8 $142 28. Rd3 Rh5) 28. Ra6 {[%emt 0:04:03]} Rb2 {[%emt 0:02:30]} 29. Rb3 {[%emt 0:01:24]} ({Weaker is} 29. Rxc6 R5xb4+ 30. Kd3 Kf8 $16) 29... Rc2+ {[%emt 0:00:29] [#]} 30. Rc3 {[%emt 0:01:11]} (30. Kd4 $1 $18 {is the precise move to win.} Rcxc5 (30... Rxf2 31. Rxc6 Rxg2 32. Rb6 $18) 31. bxc5 Rxb3 32. Rxc6) 30... Rb2 $16 {[%emt 0:00:07]} 31. Rb3 $2 {[%emt 0:00:04]} (31. Rxc6 $16 R5xb4+ 32. Kd3) 31... Rc2+ $18 {[%emt 0:00:09] [#]} 32. Kd4 $1 {[%emt 0:00:06]} Rxf2 $2 {[%emt 0:04:25]} (32... Rcxc5 {was necessary.} 33. bxc5 Rxb3 34. Rxc6 Rb4+ 35. Kd5 Rb2) 33. Rxc6 {[%emt 0:01:05] White is clearly winning.} Rf4+ {[%emt 0:04:01]} 34. Kc3 {[%emt 0:00:31]} Kf8 {[%emt 0:00:49]} 35. Rb6 {[%emt 0:08:28]} Rxb6 {[%emt 0:00:24]} 36. cxb6 {[%emt 0:00:03] b7 would now be deadly.} Rf6 {[%emt 0:00:12]} 37. Kc4 {[%emt 0:00:17]} Rxb6 {[%emt 0:00:59]} 38. Kc5 {[%emt 0:00:11]} Rb8 {[%emt 0:03:35]} 39. b5 {[%emt 0:00:38][%cal Bb4b5,Bb5b6][%mdl 32]} Ke7 {[%emt 0:00:13]} 40. b6 {[%emt 0:00:32] Weighted Error Value: White=0.42/Black=0.33.  Mistake:       	White=3     	Black=5      Inaccurate:     	White=1     	Black=2      OK:         	White=10    	Black=7      Best:        	---       	Black=4      Strong:       	White=2     	---} 1-0

[Event "WSTCC-50 2024"]
[Site "Krakow"]
[Date "2024.07.02"]
[Round "1.3"]
[White "Ginsburg, Mark"]
[Black "Fomina, Tatyana"]
[Result "1-0"]
[ECO "A04"]
[WhiteElo "2272"]
[BlackElo "2192"]
[Annotator "RC"]
[PlyCount "119"]
[EventDate "2024.07.01"]
[EventType "team-tourn"]
[EventCountry "POL"]
[SourceTitle "playchess.com"]
[Source "ChessBase"]
[SourceQuality "1"]
[TimeControl "40/5400+30:1800+30"]

1. Nf3 {[%emt 0:00:18]} f5 {[%emt 0:00:32]} 2. d4 {[%emt 0:00:58]} Nf6 {[%emt 0:00:43]} 3. g3 {[%emt 0:00:19]} e6 {[%emt 0:00:34]} 4. Bg2 {[%emt 0:00:08]} Be7 {[%emt 0:00:20]} 5. O-O {[%emt 0:00:14]} O-O {[%emt 0:00:19]} 6. b3 {[%emt 0:03:21]} Ne4 {[%emt 0:03:04]} 7. Bb2 {[%emt 0:01:07]} Bf6 {[%emt 0:01:52]} 8. Nbd2 {[%emt 0:04:45]} Nxd2 {[%emt 0:04:48]} 9. Qxd2 {[%emt 0:04:38]} c5 {[%emt 0:03:39]} 10. c4 {[%emt 0:01:45]} Qe7 {[%emt 0:07:57]} 11. Rad1 {[%emt 0:01:37]} d6 {[%emt 0:03:49]} 12. dxc5 {[%emt 0:03:20]} Bxb2 {[%emt 0:04:15]} 13. Qxb2 {[%emt 0:00:27]} dxc5 {[%emt 0:01:02]} 14. Ne5 {[%emt 0:19:01]} Qc7 {[%emt 0:02:25]} 15. f4 {[%emt 0:06:58]} a5 {[%emt 0:13:25]} 16. e4 {[%emt 0:01:07]} Nd7 {[%emt 0:11:08]} 17. exf5 {[%emt 0:04:31]} Rxf5 {[%emt 0:03:45]} 18. Nf3 {[%emt 0:06:54]} Rf8 {[%emt 0:02:34]} 19. Rfe1 {[%emt 0:00:44]} Nf6 {[%emt 0:01:20]} 20. Qe5 {[%emt 0:06:51]} Qxe5 {[%emt 0:04:57]} 21. fxe5 {[%emt 0:03:09]} Ng4 {[%emt 0:01:33]} 22. Ng5 {[%emt 0:03:51]} a4 {[%emt 0:06:11]} 23. h3 {[%emt 0:03:24]} Nh6 {[%emt 0:01:49]} 24. g4 {[%emt 0:03:35]} axb3 {[%emt 0:02:18]} 25. axb3 {[%emt 0:00:06]} Nf7 {[%emt 0:00:44]} 26. Nxf7 {[%emt 0:05:37]} Kxf7 {[%emt 0:01:04]} 27. Rd6 {[%emt 0:00:28]} Kg6 {[%emt 0:03:58]} 28. Rf1 {[%emt 0:01:53]} Rxf1+ {[%emt 0:00:45]} 29. Bxf1 {[%emt 0:00:34]} Kg5 {[%emt 0:00:13]} 30. Rd8 {[%emt 0:03:13]} Kf4 {[%emt 0:00:30]} 31. Kf2 {[%emt 0:00:09]} Kxe5 {[%emt 0:04:57]} 32. Ke3 {[%emt 0:00:49]} Kf6 {[%emt 0:00:28]} 33. Bd3 {[%emt 0:02:31]} Ke7 {[%emt 0:01:55]} 34. Rg8 {[%emt 0:00:53]} Kf7 {[%emt 0:01:15]} 35. Rh8 {[%emt 0:01:16]} h6 {[%emt 0:01:59]} 36. h4 {[%emt 0:00:46]} Kf6 {[%emt 0:02:05]} 37. Be4 {[%emt 0:02:31]} Rb8 {[%emt 0:01:45]} 38. h5 {[%emt 0:03:41]} Ke5 {[%emt 0:01:17]} 39. Rg8 {[%emt 0:00:32]} Kf6 {[%emt 0:00:51]} 40. Bf3 {[%emt 0:01:44]} Kf7 {[%emt 0:00:22]} 41. Rh8 {[%emt 0:30:10]} Kf6 {[%emt 0:31:45]} 42. Be4 {[%emt 0:00:00]} Kg5 {[%emt 0:00:00]} 43. Rg8 {[%emt 0:00:00]} Kf6 {[%emt 0:00:00]} 44. Bg6 {[%emt 0:00:00]} b6 {[%emt 0:00:00]} 45. Kf4 {[%emt 0:00:00]} b5 {[%emt 0:00:00]} 46. cxb5 {[%emt 0:00:00]} e5+ {[%emt 0:00:00]} 47. Kg3 {[%emt 0:00:00]} Rxb5 {[%emt 0:00:00]} 48. Rxc8 {[%emt 0:00:00]} Rxb3+ {[%emt 0:00:00]} 49. Kh4 {[%emt 0:00:00]} Rc3 {[%emt 0:00:00]} 50. Rc6+ {[%emt 0:00:00]} Ke7 {[%emt 0:00:00]} 51. Rc7+ {[%emt 0:00:00]} Kd6 {[%emt 0:00:00]} 52. Rxg7 {[%emt 0:00:00]} Rc1 {[%emt 0:00:00]} 53. Be4 {[%emt 0:00:00]} c4 {[%emt 0:00:00]} 54. Rg6+ {[%emt 0:00:00]} Kc5 {[%emt 0:00:00]} 55. Rxh6 {[%emt 0:00:00]} Kd4 {[%emt 0:00:00]} 56. Bf5 {[%emt 0:00:00]} c3 {[%emt 0:00:00]} 57. Kg5 {[%emt 0:00:00]} Re1 {[%emt 0:00:00]} 58. Rd6+ {[%emt 0:00:00]} Kc4 {[%emt 0:02:25]} 59. h6 {[%emt 0:00:00]} e4 {[%emt 0:00:21]} 60. h7 {[%emt 0:00:00]} 1-0

[Event "WSTCC-50 2024"]
[Site "Krakow"]
[Date "2024.07.02"]
[Round "1.3"]
[White "Sagalchik, Olga"]
[Black "Aird, Ian"]
[Result "1-0"]
[ECO "D37"]
[WhiteElo "2128"]
[BlackElo "1840"]
[Annotator "NA RC"]
[PlyCount "75"]
[EventDate "2024.07.01"]
[EventType "team-tourn"]
[EventCountry "POL"]
[SourceTitle "playchess.com"]
[Source "ChessBase"]
[SourceQuality "1"]
[TimeControl "40/5400+30:1800+30"]

1. d4 {[%emt 0:00:16]} Nf6 {[%emt 0:00:02]} 2. c4 {[%emt 0:00:36]} e6 {[%emt 0:00:03]} 3. Nf3 {[%emt 0:01:19]} d5 {[%emt 0:00:08]} 4. Nc3 {[%emt 0:02:21]} a6 {[%emt 0:01:51]} 5. Bg5 {[%emt 0:01:39]} dxc4 {[%emt 0:00:29]} 6. a4 {[%emt 0:02:26]} Nc6 {[%emt 0:00:58]} 7. e3 {[%emt 0:01:38]} Na5 {[%emt 0:04:40]} 8. Qc2 {[%emt 0:08:08]} Bb4 {[%emt 0:12:08]} 9. Be2 {[%emt 0:03:53]} b5 {[%emt 0:06:56]} 10. O-O c6 {[%emt 0:01:18]} 11. Ne5 {[%emt 0:04:06]} Bb7 {[%emt 0:03:31]} 12. Bf3 {[%emt 0:12:57]} Qb6 13. Rfd1 Nb3 {[%emt 0:06:45]} 14. Rab1 {[%emt 0:18:02]} Be7 {[%emt 0:06:45]} 15. Bh4 {[%emt 0:02:52]} O-O {[%emt 0:02:11]} 16. Bxf6 {[%emt 0:00:13]} Bxf6 {[%emt 0:01:25]} 17. Nd7 Qc7 {[%emt 0:00:43]} 18. Nxf8 {[%emt 0:00:35]} Rxf8 {[%emt 0:00:02]} 19. Ne4 {[%emt 0:03:18]} Be7 {[%emt 0:00:39]} 20. Nd2 {[%emt 0:00:15]} Nxd2 {[%emt 0:05:12]} 21. Qxd2 {[%emt 0:02:51]} a5 {[%emt 0:00:41]} 22. Qc2 {[%emt 0:02:17]} Bb4 {[%emt 0:01:07]} 23. Rbc1 {[%emt 0:00:51]} Rd8 {[%emt 0:02:21]} 24. h4 {[%emt 0:02:52]} Rd7 {[%emt 0:07:23]} 25. h5 {[%emt 0:02:49]} Qd8 {[%emt 0:03:29]} 26. Qe2 {[%emt 0:05:37]} Qg5 {[%emt 0:07:22]} 27. Be4 f5 28. f4 {[%emt 0:01:34]} Qf6 {[%emt 0:03:53]} 29. Bf3 {[%emt 0:00:13]} g5 {[%emt 0:05:52]} 30. hxg6 {[%emt 0:03:06]} hxg6 {[%emt 0:00:46]} 31. axb5 {[%emt 0:04:21]} cxb5 {[%emt 0:00:35]} 32. Bxb7 {[%emt 0:00:12]} Rxb7 {[%emt 0:00:04]} 33. Qf3 {[%emt 0:00:17]} Qe7 {[%emt 0:03:40]} 34. Kf2 {[%emt 0:01:31]} Rc7 {[%emt 0:02:18]} 35. Rh1 {[%emt 0:02:17]} c3 {[%emt 0:03:34]} 36. bxc3 {[%emt 0:00:14]} Rxc3 {[%emt 0:01:54]} 37. Rxc3 {[%emt 0:00:04]} Bxc3 {[%emt 0:00:10]} 38. Qa8+ {[%emt 0:00:06]} 1-0

[Event "WSTCC-50 2024"]
[Site "Krakow"]
[Date "2024.07.02"]
[Round "1.4"]
[White "Korge, Kersti"]
[Black "Koganov, Mikhail"]
[Result "1/2-1/2"]
[ECO "A00"]
[WhiteElo "1859"]
[BlackElo "2177"]
[Annotator "RC"]
[PlyCount "95"]
[EventDate "2024.07.01"]
[EventType "team-tourn"]
[EventCountry "POL"]
[SourceTitle "playchess.com"]
[Source "ChessBase"]
[SourceQuality "1"]
[TimeControl "40/5400+30:1800+30"]

1. b4 {[%emt 0:00:02]} e5 {[%emt 0:03:17]} 2. Bb2 {[%emt 0:00:07]} d6 {[%emt 0:00:22]} 3. e3 {[%emt 0:00:42]} Nc6 {[%emt 0:01:14]} 4. a3 {[%emt 0:00:59]} Nf6 {[%emt 0:01:17]} 5. Nf3 {[%emt 0:00:41]} g6 {[%emt 0:01:08]} 6. Be2 {[%emt 0:00:56]} Bg7 {[%emt 0:00:17]} 7. d4 {[%emt 0:01:33]} exd4 {[%emt 0:00:57]} 8. Nxd4 {[%emt 0:00:12]} Ne7 {[%emt 0:00:54]} 9. c4 {[%emt 0:00:34]} O-O {[%emt 0:01:11]} 10. Nc3 {[%emt 0:01:49]} Re8 {[%emt 0:03:31]} 11. O-O {[%emt 0:00:13]} Nf5 {[%emt 0:10:26]} 12. Nxf5 {[%emt 0:07:09]} Bxf5 {[%emt 0:00:23]} 13. Bf3 {[%emt 0:00:27]} c6 {[%emt 0:00:51]} 14. Ne2 {[%emt 0:02:08]} Qc7 {[%emt 0:01:28]} 15. Nd4 {[%emt 0:00:23]} Be4 {[%emt 0:00:22]} 16. Bxe4 {[%emt 0:01:45]} Rxe4 {[%emt 0:01:26]} 17. Qc2 {[%emt 0:05:35]} Rae8 {[%emt 0:01:07]} 18. Rad1 {[%emt 0:02:14]} d5 {[%emt 0:13:41]} 19. cxd5 {[%emt 0:06:31]} Nxd5 {[%emt 0:03:15]} 20. Nf3 {[%emt 0:04:16]} Bxb2 {[%emt 0:04:35]} 21. Qxb2 {[%emt 0:00:09]} Qb6 {[%emt 0:00:41]} 22. Rd4 {[%emt 0:02:35]} a5 {[%emt 0:01:17]} 23. Rxe4 {[%emt 0:04:16]} Rxe4 {[%emt 0:02:15]} 24. Qb1 {[%emt 0:04:19]} Re7 {[%emt 0:01:26]} 25. bxa5 {[%emt 0:01:52]} Qxa5 {[%emt 0:00:28]} 26. Qb3 {[%emt 0:00:39]} Qc3 {[%emt 0:03:08]} 27. Rb1 {[%emt 0:01:38]} Qxb3 {[%emt 0:00:11]} 28. Rxb3 {[%emt 0:00:05]} Kf8 {[%emt 0:00:14]} 29. Kf1 {[%emt 0:01:01]} Ke8 {[%emt 0:00:38]} 30. a4 {[%emt 0:01:45]} Kd8 {[%emt 0:00:23]} 31. a5 {[%emt 0:01:38]} Kc7 {[%emt 0:00:52]} 32. Nd4 {[%emt 0:00:50]} Re8 {[%emt 0:00:49]} 33. Ke2 {[%emt 0:01:14]} Nf4+ {[%emt 0:00:43]} 34. Kf3 {[%emt 0:00:08]} Ne6 {[%emt 0:00:11]} 35. Nxe6+ {[%emt 0:00:31]} Rxe6 {[%emt 0:00:10]} 36. e4 {[%emt 0:01:29]} Re5 {[%emt 0:02:00]} 37. Ra3 {[%emt 0:00:13]} Kb8 {[%emt 0:00:27]} 38. Ke3 {[%emt 0:00:57]} Ka7 {[%emt 0:00:29]} 39. f4 {[%emt 0:01:19]} Re7 {[%emt 0:01:51]} 40. Kd4 {[%emt 0:00:59]} Rd7+ {[%emt 0:01:04]} 41. Ke3 {[%emt 0:32:19]} Ka6 {[%emt 0:30:09]} 42. g4 {[%emt 0:00:42]} c5 {[%emt 0:00:30]} 43. f5 {[%emt 0:00:59]} c4 {[%emt 0:00:34]} 44. e5 {[%emt 0:00:58]} Kb5 {[%emt 0:01:04]} 45. Ke4 {[%emt 0:01:13]} gxf5+ {[%emt 0:24:56]} 46. gxf5 {[%emt 0:03:40]} Re7 {[%emt 0:06:13]} 47. Kd5 {[%emt 0:01:01]} Rd7+ {[%emt 0:00:07]} 48. Ke4 1/2-1/2

[Event "WSTCC-50 2024"]
[Site "Krakow"]
[Date "2024.07.02"]
[Round "1.4"]
[White "Heatlie, Douglas S"]
[Black "Tsodikova, Natalia"]
[Result "0-1"]
[ECO "A48"]
[WhiteElo "1834"]
[BlackElo "2019"]
[Annotator "NA RC"]
[PlyCount "52"]
[EventDate "2024.07.01"]
[EventType "team-tourn"]
[EventCountry "POL"]
[SourceTitle "playchess.com"]
[Source "ChessBase"]
[SourceQuality "1"]
[TimeControl "40/5400+30:1800+30"]

1. d4 {[%emt 0:00:10]} Nf6 {[%emt 0:00:07]} 2. Nf3 {[%emt 0:00:23]} g6 {[%emt 0:00:17]} 3. Bf4 {[%emt 0:00:44]} c5 {[%emt 0:01:43]} 4. e3 {[%emt 0:02:06]} cxd4 {[%emt 0:07:01]} 5. exd4 {[%emt 0:00:34]} Qb6 {[%emt 0:00:38]} 6. b3 {[%emt 0:02:19]} Bg7 {[%emt 0:01:11]} 7. c3 {[%emt 0:11:27]} O-O {[%emt 0:02:09]} 8. Bd3 {[%emt 0:02:17]} Nc6 {[%emt 0:03:04]} 9. O-O {[%emt 0:02:57]} d6 {[%emt 0:01:55]} 10. a4 {[%emt 0:03:45]} Bg4 {[%emt 0:04:48]} 11. b4 {[%emt 0:09:23]} e5 {[%emt 0:04:07]} 12. dxe5 {[%emt 0:05:20]} dxe5 {[%emt 0:00:51]} 13. Be3 {[%emt 0:00:28]} Qc7 {[%emt 0:02:39]} 14. Be2 {[%emt 0:00:29]} Rfd8 {[%emt 0:02:06]} 15. Nfd2 {[%emt 0:03:36]} Be6 {[%emt 0:02:41]} 16. Qe1 {[%emt 0:02:13]} Nd5 {[%emt 0:02:13]} 17. Bf3 {[%emt 0:03:17]} Nxe3 {[%emt 0:01:14]} 18. Qxe3 {[%emt 0:00:15]} f5 {[%emt 0:01:14]} 19. Re1 {[%emt 0:06:35]} e4 {[%emt 0:04:03]} 20. Be2 {[%emt 0:00:20]} Nxb4 {[%emt 0:01:24]} 21. cxb4 {[%emt 0:05:57]} Bxa1 {[%emt 0:00:23]} 22. Nb3 {[%emt 0:02:56]} Be5 {[%emt 0:05:21]} 23. Nc5 {[%emt 0:00:18]} Bf7 {[%emt 0:02:38]} 24. g3 {[%emt 0:00:47]} Bd4 {[%emt 0:01:49]} 25. Qa3 {[%emt 0:04:22]} Rac8 {[%emt 0:04:39]} 26. Rc1 {[%emt 0:04:14]} Qe5 {[%emt 0:05:12]} 0-1

[Event "WSTCC-50 2024"]
[Site "Krakow"]
[Date "2024.07.02"]
[Round "1.4"]
[White "Serafim Junior, Arnor"]
[Black "Yermolinsky, Alex"]
[Result "0-1"]
[ECO "A10"]
[WhiteElo "1770"]
[BlackElo "2421"]
[Annotator "TA"]
[PlyCount "68"]
[EventDate "2024.07.01"]
[EventType "team-tourn"]
[EventCountry "POL"]
[SourceTitle "playchess.com"]
[Source "ChessBase"]
[SourceQuality "1"]
[TimeControl "40/5400+30:1800+30"]

{[%evp 15,68,-17,-1,-32,-29,-41,-31,-59,-30,-85,-77,-96,-87,-92,-104,-164,-162,-161,-157,-184,-176,-182,-200,-178,-179,-187,-175,-216,-215,-222,-172,-177,-162,-162,-166,-176,-176,-195,-169,-233,-176,-169,-164,-179,-168,-267,-187,-271,-234,-308,-274,-643,-648,-1401,-1341]} 1. c4 {[%emt 0:00:06]} b6 {[%emt 0:00:34]} 2. Nf3 {[%emt 0:00:24]} Bb7 {[%emt 0:00:05]} 3. g3 {[%emt 0:00:11]} c5 {[%emt 0:02:00]} 4. Bg2 {[%emt 0:00:10]} g6 {[%emt 0:00:18]} 5. Nc3 {[%emt 0:00:14]} Bg7 {[%emt 0:00:45]} 6. O-O {[%emt 0:00:22]} Nf6 {[%emt 0:00:09]} 7. e3 {[%emt 0:02:44]} O-O {[%emt 0:03:28]} 8. d4 {[%emt 0:03:56]} Ne4 {[%emt 0:00:50]} 9. Qd3 {[%emt 0:03:33]} Nxc3 {[%emt 0:00:49]} 10. bxc3 {[%emt 0:00:54]} Nc6 {[%emt 0:03:06][%cal Bb8c6,Bc6a5,Ba5c4,Bc4b2][%mdl 32]} 11. Re1 {[%emt 0:09:57] Black is slightly better.} Na5 {[%emt 0:02:38]} 12. Bb2 {[%emt 0:13:39]} (12. Nd2 $11) 12... Ba6 $17 {[%emt 0:09:49]} 13. Nd2 {[%emt 0:00:33] [#]} d5 $1 {[%emt 0:01:14][%cal Ra5c4]} 14. dxc5 {[%emt 0:09:40]} (14. Bxd5 $2 Qxd5 15. cxd5 Bxd3 $19) (14. e4 dxc4) 14... Nxc4 {[%emt 0:03:09]} 15. cxb6 {[%emt 0:03:22]} (15. e4 $17 {was worth a try.}) 15... Nxb2 $19 {[%emt 0:16:28]} ({Don't play} 15... axb6 16. Qc2 $17) 16. Qxa6 axb6 {[%emt 0:00:10]} ({Not} 16... Bxc3 17. b7 Rb8 18. Nb3 Bxe1 19. Rxe1 $11) 17. Qe2 {[%emt 0:15:14]} Na4 $1 {[%emt 0:01:25]} ({But not} 17... Bxc3 18. Rac1 Na4 19. Rc2 $17) 18. c4 {[%emt 0:08:57]} Bxa1 {[%emt 0:00:59]} 19. Rxa1 {[%emt 0:00:17]} e6 {[%emt 0:03:52]} 20. cxd5 {[%emt 0:01:31]} exd5 {[%emt 0:00:08]} 21. Qd3 {[%emt 0:02:14]} Qf6 {[%emt 0:03:47]} 22. Nb3 {[%emt 0:05:49]} Rfd8 {[%emt 0:08:05]} 23. Nd4 {[%emt 0:00:19]} Rac8 {[%emt 0:03:05]} 24. Qb5 {[%emt 0:03:42]} Nc3 {[%emt 0:00:53]} 25. Qb2 {[%emt 0:00:55]} Rc5 {[%emt 0:03:24][%cal Oc3b5]} 26. Nb3 {[%emt 0:03:43]} Rc4 {[%emt 0:01:50]} 27. Bf1 {[%emt 0:00:49]} (27. Nd4 {was called for.}) 27... Rc7 {[%emt 0:01:38]} 28. Nd4 {[%emt 0:00:41]} Rdc8 {[%emt 0:02:43]} 29. Bh3 {[%emt 0:00:18]} Ra8 {[%emt 0:01:09]} 30. Kf1 {[%emt 0:03:18]} (30. Bf1 $142) 30... Rc4 {[%emt 0:04:05]} 31. Bg2 {[%emt 0:05:25]} (31. Kg1 $142) 31... Kg7 {[%emt 0:06:05]} 32. Qd2 {[%emt 0:00:38]} Rac8 {[%emt 0:03:16][%cal Oc3b5]} 33. Ke1 $2 {[%emt 0:01:05] [#]} (33. Re1) 33... Nb5 $1 {[%emt 0:02:28][%mdl 512]} 34. Nb3 {[%emt 0:00:35]} (34. Rd1 Nxd4) 34... Rc2 {[%emt 0:00:15] White did not feel at home in the position after the opening.   Weighted Error Value: White=0.66/Black=0.15 (very precise) .  Mistake:       	White=6     	---        Inaccurate:     	White=3     	Black=1      OK:         	White=6     	Black=12     Best:        	---       	Black=1      Strong:       	---       	Black=1      Brilliant:      	---       	Black=1} 0-1

[Event "WSTCC-50 2024"]
[Site "Krakow"]
[Date "2024.07.02"]
[Round "1.5"]
[White "Jhunjhnuwala, Krishan"]
[Black "Emms, John M"]
[Result "0-1"]
[ECO "B24"]
[WhiteElo "2227"]
[BlackElo "2428"]
[Annotator "RC"]
[PlyCount "150"]
[EventDate "2024.07.01"]
[EventType "team-tourn"]
[EventCountry "POL"]
[SourceTitle "playchess.com"]
[Source "ChessBase"]
[SourceQuality "1"]
[TimeControl "40/5400+30:1800+30"]

1. e4 {[%emt 0:00:06]} c5 {[%emt 0:00:24]} 2. Nc3 {[%emt 0:00:12]} Nc6 {[%emt 0:00:21]} 3. Bb5 {[%emt 0:00:13]} Nd4 {[%emt 0:00:55]} 4. Nf3 {[%emt 0:00:12]} a6 {[%emt 0:03:27]} 5. Bd3 {[%emt 0:00:47]} Nc6 {[%emt 0:01:20]} 6. O-O {[%emt 0:01:22]} d6 {[%emt 0:02:47]} 7. a3 {[%emt 0:02:21]} Nf6 {[%emt 0:07:14]} 8. Rb1 {[%emt 0:07:40]} e5 {[%emt 0:14:24]} 9. b4 {[%emt 0:03:52]} cxb4 {[%emt 0:04:21]} 10. axb4 {[%emt 0:00:31]} b5 {[%emt 0:00:24]} 11. Nd5 {[%emt 0:08:02]} Be7 {[%emt 0:01:19]} 12. c4 {[%emt 0:05:05]} bxc4 {[%emt 0:06:27]} 13. Nxf6+ {[%emt 0:06:01]} Bxf6 {[%emt 0:00:19]} 14. Bxc4 {[%emt 0:00:34]} O-O {[%emt 0:01:38]} 15. Bd5 {[%emt 0:06:09]} Bd7 {[%emt 0:02:34]} 16. d3 {[%emt 0:01:31]} Rb8 {[%emt 0:04:55]} 17. Bd2 {[%emt 0:01:17]} Ne7 {[%emt 0:01:26]} 18. Bc4 {[%emt 0:01:56]} Bb5 {[%emt 0:00:20]} 19. Qb3 {[%emt 0:01:34]} Qd7 {[%emt 0:02:35]} 20. Rfc1 {[%emt 0:02:01]} h6 {[%emt 0:03:20]} 21. Ra1 {[%emt 0:02:26]} Ng6 {[%emt 0:06:56]} 22. Bxb5 {[%emt 0:04:09]} axb5 {[%emt 0:00:20]} 23. Ra6 {[%emt 0:06:50]} Ne7 {[%emt 0:07:19]} 24. h3 {[%emt 0:04:23]} Rfc8 {[%emt 0:05:53]} 25. Rxc8+ {[%emt 0:02:37]} Nxc8 {[%emt 0:00:33]} 26. Be3 {[%emt 0:02:28]} Ne7 {[%emt 0:13:45]} 27. Ra7 {[%emt 0:03:57]} Qe6 {[%emt 0:02:54]} 28. Qxe6 {[%emt 0:05:04]} fxe6 {[%emt 0:00:03]} 29. Rd7 {[%emt 0:01:14]} Nc6 {[%emt 0:02:06]} 30. Bd2 {[%emt 0:00:55]} Be7 {[%emt 0:01:00]} 31. g4 {[%emt 0:07:42]} Bf8 {[%emt 0:01:36]} 32. g5 {[%emt 0:02:41]} d5 {[%emt 0:00:58]} 33. gxh6 {[%emt 0:01:44]} gxh6 {[%emt 0:00:06]} 34. exd5 {[%emt 0:01:51]} exd5 {[%emt 0:00:02]} 35. Rxd5 {[%emt 0:03:31]} Nxb4 {[%emt 0:00:03]} 36. Rd7 {[%emt 0:02:41]} Nc6 {[%emt 0:00:54]} 37. Bc3 {[%emt 0:00:29]} b4 {[%emt 0:00:56]} 38. Bxe5 {[%emt 0:00:55]} Nxe5 {[%emt 0:01:18]} 39. Nxe5 {[%emt 0:00:05]} b3 {[%emt 0:00:18]} 40. Nc4 {[%emt 0:00:39]} b2 {[%emt 0:00:19]} 41. Nxb2 {[%emt 0:31:35]} Rxb2 {[%emt 0:30:24]} 42. d4 {[%emt 0:00:00]} Rd2 {[%emt 0:00:00]} 43. Kg2 {[%emt 0:00:00]} Rd3 {[%emt 0:00:00]} 44. f3 {[%emt 0:00:00]} Bg7 {[%emt 0:00:00]} 45. Kg3 {[%emt 0:00:00]} Kh7 {[%emt 0:00:00]} 46. Kg4 {[%emt 0:00:00]} Kg6 {[%emt 0:00:00]} 47. Rd5 {[%emt 0:00:00]} Rd1 {[%emt 0:00:00]} 48. Kf4 {[%emt 0:00:00]} Bf6 {[%emt 0:00:00]} 49. Kg3 {[%emt 0:00:00]} h5 {[%emt 0:00:00]} 50. Kg2 {[%emt 0:00:10]} Rd2+ {[%emt 0:00:00]} 51. Kh1 {[%emt 0:01:17]} Rf2 {[%emt 0:00:00]} 52. Rb5 {[%emt 0:01:25]} Bxd4 {[%emt 0:00:00]} 53. Rd5 {[%emt 0:01:25]} Bf6 {[%emt 0:00:00]} 54. Rd3 {[%emt 0:00:12]} Kf5 {[%emt 0:00:00]} 55. Kg1 {[%emt 0:00:14]} Ra2 {[%emt 0:00:00]} 56. Rd7 {[%emt 0:01:11]} Kf4 {[%emt 0:01:07]} 57. Rf7 {[%emt 0:00:31]} Kg3 {[%emt 0:00:35]} 58. Kf1 {[%emt 0:00:36]} Rf2+ {[%emt 0:00:54]} 59. Kg1 {[%emt 0:00:45]} Rxf3 {[%emt 0:02:02]} 60. h4 {[%emt 0:00:27]} Kxh4 {[%emt 0:01:14]} 61. Kg2 {[%emt 0:00:32]} Kg4 {[%emt 0:01:38]} 62. Rf8 {[%emt 0:00:43]} Rf5 {[%emt 0:00:52]} 63. Ra8 {[%emt 0:00:37]} Rf4 {[%emt 0:00:27]} 64. Rg8+ {[%emt 0:00:34]} Bg5 {[%emt 0:00:11]} 65. Rg7 {[%emt 0:00:36]} Ra4 {[%emt 0:00:06]} 66. Rg8 {[%emt 0:00:12]} h4 {[%emt 0:00:23]} 67. Kh1 {[%emt 0:00:24]} Ra1+ {[%emt 0:01:44]} 68. Kh2 {[%emt 0:00:13]} Ra2+ {[%emt 0:00:06]} 69. Kh1 {[%emt 0:00:07]} h3 {[%emt 0:00:47]} 70. Kg1 {[%emt 0:01:00]} Kh4 {[%emt 0:00:34]} 71. Rc8 {[%emt 0:02:26]} Be3+ {[%emt 0:01:32]} 72. Kf1 {[%emt 0:00:10]} h2 {[%emt 0:00:38]} 73. Rh8+ {[%emt 0:00:23]} Kg3 {[%emt 0:00:09]} 74. Rg8+ {[%emt 0:00:43]} Kf3 {[%emt 0:00:14]} 75. Rf8+ {[%emt 0:00:35]} Bf4 {[%emt 0:00:11]} 0-1